fUSD/lending_fUSD_20250820
["ID","MTS","AMOUNT","RATE_DAILY","PERIOD"]
[380336693,1755694244991,-150.0,0.00015548,2]
[380336694,1755694245000,-500.0,0.00015548,2]
[380336695,1755694245009,-428.0,0.00015548,2]
[380336696,1755694245018,-150.0,0.00015548,2]
[380336697,1755694245028,-9286.63344084,0.0001555,2]
[380336698,1755694245039,-786.7961439,0.00015567,2]
[380336699,1755694245048,-500.0,0.00015633,2]
[380336700,1755694245057,-314.76,0.00015713,2]
[380336701,1755694245066,-175.5579496,0.00015735,2]
[380336702,1755694245075,-587.58,0.00015753,2]
[380336703,1755694245084,-250.0,0.00015822,2]
[380336704,1755694245094,-150.0,0.00015822,2]
[380336705,1755694245103,-150.0,0.00015822,2]
[380336706,1755694245113,-500.0,0.00015822,2]
[380336707,1755694245122,-428.0,0.00015822,2]
[380336708,1755694245132,-251.35823569,0.00015822,2]
[380336709,1755694245142,-157.05963202,0.00015829,7]
[380336710,1755694245151,-1500.0,0.0001589,2]
[380336711,1755694245161,-3000.0,0.0001589,2]
[380336712,1755694245171,-2800.0,0.0001589,2]
[380336713,1755694245180,-386.17,0.00015946,2]
[380336714,1755694245190,-185.00214356,0.00015996,2]
[380336715,1755694245200,-200.0,0.00016,2]
[380336716,1755694245209,-244.39,0.00016001,2]
[380336717,1755694245220,-165.38,0.00016046,2]
[380336718,1755694245229,-160.0,0.00016096,2]
[380336719,1755694245239,-237.0,0.00016096,2]
[380336720,1755694245568,-500.0,0.00016096,2]
[380336721,1755694245578,-428.0,0.00016096,2]
[380336722,1755694245589,-6121.05,0.00016116,2]
[380336723,1755694245601,-500.0,0.00016171,2]
[380336724,1755694245611,-500.0,0.00016171,2]
[380336725,1755694245621,-639.74227414,0.00016171,2]
[380336726,1755694245630,-500.0,0.00016171,2]
[380336727,1755694245642,-21500.0,0.00016186,2]
[380336728,1755694245652,-2234.0,0.00016186,2]
[380336729,1755694245662,-150.0,0.00016186,2]
[380336730,1755694245675,-155883.04,0.000162,2]
[380336731,1755694245685,-151.0,0.000162,2]
[380336732,1755694245695,-151.0,0.000162,2]
[380336733,1755694245705,-151.0,0.000162,2]
[380336734,1755694245714,-151.0,0.000162,2]
[380336735,1755694245724,-151.0,0.000162,2]
[380336736,1755694245734,-151.0,0.000162,2]
[380336737,1755694245744,-151.0,0.000162,2]
[380336738,1755694245753,-151.0,0.000162,2]
[380336739,1755694245763,-151.0,0.000162,2]
[380336740,1755694245772,-151.0,0.000162,2]
[380336741,1755694245786,-228.642886,0.000162,2]
[380336742,1755694245796,-151.0,0.000162,2]
[380336743,1755694245806,-228.642886,0.000162,2]
[380336744,1755694245815,-189.864089,0.000162,2]
[380336745,1755694245825,-228.642886,0.000162,2]
[380336746,1755694245835,-151.0,0.000162,2]
[380336747,1755694245845,-235.821144,0.000162,2]
[380336748,1755694245855,-151.0,0.000162,2]
[380336749,1755694245864,-151.0,0.000162,2]
[380336750,1755694245874,-151.0,0.000162,2]
[380336751,1755694245884,-151.0,0.000162,2]
[380336752,1755694245894,-151.0,0.000162,2]
[380336753,1755694245904,-151.0,0.000162,2]
[380336754,1755694245916,-151.579801,0.000162,2]
[380336755,1755694245926,-151.0,0.000162,2]
[380336756,1755694245936,-171.822591,0.000162,2]
[380336757,1755694245946,-299.778001,0.000162,2]
[380336758,1755694245956,-299.778001,0.000162,2]
[380336759,1755694245965,-151.0,0.000162,2]
[380336760,1755694245975,-299.778001,0.000162,2]
[380336761,1755694245984,-151.0,0.000162,2]
[380336762,1755694245994,-299.778001,0.000162,2]
[380336763,1755694246003,-151.0,0.000162,2]
[380336764,1755694246014,-151.0,0.000162,2]
[380336765,1755694246026,-228.642886,0.000162,2]
[380336766,1755694246038,-151.0,0.000162,2]
[380336767,1755694246048,-151.0,0.000162,2]
[380336768,1755694246059,-151.0,0.000162,2]
[380336769,1755694246068,-151.0,0.000162,2]
[380336770,1755694246078,-151.0,0.000162,2]
[380336771,1755694246090,-462.198119,0.000162,2]
[380336772,1755694246100,-462.198119,0.000162,2]
[380336774,1755694246109,-462.198119,0.000162,2]
[380336775,1755694246119,-151.0,0.000162,2]
[380336776,1755694246128,-151.0,0.000162,2]
[380336777,1755694246138,-462.198119,0.000162,2]
[380336778,1755694246147,-151.0,0.000162,2]
[380336779,1755694246157,-151.0,0.000162,2]
[380336780,1755694246167,-151.0,0.000162,2]
[380336781,1755694246177,-152.036268,0.000162,2]
[380336782,1755694246186,-151.0,0.000162,2]
[380336783,1755694246196,-282.67769,0.000162,2]
[380336784,1755694246205,-282.67769,0.000162,2]
[380336785,1755694246215,-447.943688,0.000162,2]
[380336786,1755694246225,-282.67769,0.000162,2]
[380336787,1755694246236,-447.943688,0.000162,2]
[380336788,1755694246245,-1670.917246,0.000162,2]
[380336789,1755694246255,-282.67769,0.000162,2]
[380336790,1755694246264,-1670.917246,0.000162,2]
[380336791,1755694246274,-447.943688,0.000162,2]
[380336792,1755694246283,-151.0,0.000162,2]
[380336793,1755694246293,-1670.917246,0.000162,2]
[380336794,1755694246302,-447.943688,0.000162,2]
[380336795,1755694246312,-163.375816,0.000162,2]
[380336796,1755694246321,-1670.917246,0.000162,2]
[380336797,1755694246331,-151.0,0.000162,2]
[380336798,1755694246340,-151.0,0.000162,2]
[380336799,1755694246349,-151.0,0.000162,2]
[380336800,1755694246359,-151.0,0.000162,2]
[380336801,1755694246368,-151.0,0.000162,2]
[380336802,1755694246378,-151.0,0.000162,2]
[380336803,1755694246389,-151.0,0.000162,2]
[380336804,1755694246399,-329.066521,0.000162,2]
[380336805,1755694246408,-151.0,0.000162,2]
[380336806,1755694246418,-417.804054,0.000162,2]
[380336807,1755694246427,-206.638341,0.000162,2]
[380336808,1755694246437,-522.91624,0.000162,2]
[380336809,1755694246447,-151.0,0.000162,2]
[380336810,1755694246457,-173.839743,0.000162,2]
[380336811,1755694246466,-151.0,0.000162,2]
[380336812,1755694246476,-151.0,0.000162,2]
[380336813,1755694246486,-151.0,0.000162,2]
[380336814,1755694246495,-417.804054,0.000162,2]
[380336815,1755694246505,-329.066521,0.000162,2]
[380336816,1755694246514,-522.91624,0.000162,2]
[380336817,1755694246524,-173.839743,0.000162,2]
[380336818,1755694246534,-151.0,0.000162,2]
[380336819,1755694246544,-329.066521,0.000162,2]
[380336820,1755694246553,-300.717446,0.000162,2]
[380336821,1755694246562,-417.804054,0.000162,2]
[380336822,1755694246571,-522.91624,0.000162,2]
[380336823,1755694246581,-173.839743,0.000162,2]
[380336824,1755694246591,-417.804054,0.000162,2]
[380336825,1755694246605,-329.066521,0.000162,2]
[380336826,1755694246616,-522.91624,0.000162,2]
[380336827,1755694246628,-173.839743,0.000162,2]
[380336828,1755694246641,-9286.63344084,0.00016325,2]
[380336829,1755694246651,-172.54120543,0.0001635,2]
[380336830,1755694246661,-500.0,0.0001637,2]
[380336831,1755694246670,-428.0,0.0001637,2]
[380336832,1755694246681,-212.04014818,0.00016433,2]
[380336833,1755694246691,-991.9,0.00016438,2]
[380336834,1755694246701,-300.0,0.00016438,4]
[380336835,1755694246711,-150.0,0.00016438,2]
[380336836,1755694246720,-587.58,0.00016438,2]
[380336837,1755694246729,-666.0,0.00016438,3]
[380336838,1755694246739,-300.0,0.00016438,2]
[380336839,1755694246748,-600.0,0.00016438,2]
[380336840,1755694246758,-600.0,0.00016438,2]
[380336841,1755694246767,-600.0,0.00016438,2]
[380336842,1755694246777,-600.0,0.00016438,2]
[380336843,1755694246788,-600.0,0.00016438,2]
[380336844,1755694246798,-600.0,0.00016438,2]
[380336845,1755694246807,-600.0,0.00016438,2]
[380336846,1755694246817,-600.0,0.00016438,2]
[380336847,1755694246826,-600.0,0.00016438,2]
[380336848,1755694246836,-600.0,0.00016438,2]
[380336849,1755694246845,-600.0,0.00016438,2]
[380336850,1755694246854,-320.74051982,0.00016463,2]
[380336851,1755694246863,-300.65,0.00016512,2]
[380336852,1755694246873,-166.0,0.00016603,2]
[380336853,1755694246883,-803.40761178,0.0001661,2]
[380336855,1755694248334,-1196.59238822,0.0001661,2]
[380336856,1755694248345,-2196.81,0.00016611,2]
[380336857,1755694248354,-2196.81,0.00016624,2]
[380336858,1755694248363,-315.78761178,0.00016636,2]
[380336859,1755694248375,-317.98127747,0.00016636,2]
[380336860,1755694248386,-1563.04111075,0.00016636,2]
[380336861,1755694248395,-500.0,0.00016644,2]
[380336862,1755694248406,-428.0,0.00016644,2]
[380336863,1755694248416,-533.20151582,0.00016649,2]
[380336864,1755694248433,-1663.60848418,0.00016649,2]
[380336865,1755694248443,-1421.95249859,0.00016661,2]
[380336866,1755694248473,-484.872626,0.00011,2]
[380336867,1755694248482,-92.187374,0.00016661,2]
[380336868,1755694248495,-682.67012741,0.00016661,2]
[380336869,1755694248504,-2196.81,0.00016673,2]
[380336870,1755694248514,-1730.92567259,0.00016686,2]
[380336871,1755694248526,-465.88432741,0.00016686,2]
[380336872,1755694248537,-151.0,0.00016698,2]
[380336873,1755694248546,-151.0,0.00016698,2]
[380336874,1755694248557,-17.78053833,0.00016698,2]
[380336875,1755694248569,-549.20058667,0.00016698,2]
[380336876,1755694248579,-566.981125,0.00016698,2]
[380336877,1755694248589,-273.67446124,0.00016698,2]
[380336878,1755694248611,-293.30666376,0.00016698,2]
[380336879,1755694248622,-106.73165531,0.00016698,2]
[380336880,1755694248635,-460.24946969,0.00016698,2]
[380336881,1755694248646,-174.938114,0.00016698,2]
[380336882,1755694248657,-174.938114,0.00016698,2]
[380336883,1755694248668,-27.45184456,0.00016698,2]
[380336884,1755694249080,-215.24565333,0.00010999,2]
[380336885,1755694249089,-191.53620603,0.00010999,2]
[380336886,1755694249116,-85.00283409,0.00010999,2]
[380336887,1755694249126,-500.0,0.00010999,2]
[380336888,1755694249135,-105.93903489,0.00010999,2]
[380336889,1755694249147,-394.06096511,0.00010999,2]
[380336890,1755694249157,-381.91774263,0.00010999,2]
[380336891,1755694249167,-4990.02129226,0.00011,2]
[380336892,1755694249178,-6347.57622461,0.00011,2]
[380336893,1755694249624,-278.02196257,0.00011,2]
[380336894,1755694249651,-3640.40000004,0.00011,2]
[380336895,1755694249662,-781.78432898,0.00011,2]
[380336896,1755694250021,-285372.45093588,0.00011,2]
[380336898,1755694285293,300.0,0.000109,2]
[380336903,1755694512781,1000.0,0.00024,120]
[380336905,1755694681714,170.0,0.00010282,7]
[380336908,1755694775511,-358.46930693,0.00010798,2]
[380336909,1755694783170,-843.97594471,0.00010798,2]
[380336910,1755694790709,-1340.1309861,0.00010798,2]
[380336916,1755695337180,-2107.427977,0.00010797,2]
[380336917,1755695344335,-2107.427977,0.00010797,2]
[380336920,1755695432175,-1037.31711261,0.00010797,2]
[380336921,1755695432184,-197.47695596,0.00010798,2]
[380336922,1755695432195,-1200.0,0.00010898,2]
[380336923,1755695432206,-1555.9711333,0.00010899,2]
[380336924,1755695432216,-300.0,0.00010899,2]
[380336925,1755695432227,-300.0,0.00010899,2]
[380336926,1755695432237,-1200.0,0.00010899,2]
[380336927,1755695432248,-1066.26074123,0.000109,2]
[380336928,1755695432258,-1366.26074123,0.000109,2]
[380336929,1755695432268,-794.52506256,0.000109,2]
[380336930,1755695432303,-705.47493744,0.000109,2]
[380336931,1755695432315,-432.72635976,0.00011,2]
[380336932,1755695432326,-339.01560431,0.00011,2]
[380336933,1755695432352,-1252.21803593,0.00011,2]
[380336934,1755695432363,-150.0,0.00011044,2]
[380336935,1755695432373,-500.0,0.00011045,2]
[380336937,1755695432383,-500.0,0.00011045,2]
[380336938,1755695432393,-500.0,0.00011045,2]
[380336939,1755695432403,-500.0,0.00011045,2]
[380336940,1755695432413,-500.0,0.00011045,2]
[380336941,1755695432424,-500.0,0.00011045,2]
[380336942,1755695432436,-500.0,0.00011045,2]
[380336943,1755695432447,-500.0,0.00011045,2]
[380336945,1755695432458,-500.0,0.00011045,2]
[380336947,1755695432468,-500.0,0.00011045,2]
[380336948,1755695432479,-500.0,0.00011045,2]
[380336949,1755695432489,-21.51146472,0.00011045,2]
[380336950,1755695432508,-478.48853528,0.00011045,2]
[380336951,1755695432518,-278.71952951,0.00011045,2]
[380336952,1755695432529,-151.0,0.00011052,2]
[380336953,1755695432539,-500.0,0.000111,2]
[380336954,1755695432549,-543.42,0.000111,2]
[380336955,1755695432559,-48.37193521,0.000111,2]
[380336956,1755695432581,-1173.6879997,0.000111,2]
[380336957,1755695432593,-7572.28334795,0.000111,2]
[380336960,1755695437793,-693.86965333,0.000111,2]
[380336961,1755695437806,-511.77706381,0.000111,2]
[380336962,1755695437815,-150.99,0.000111,2]
[380336963,1755695437827,-10.25505634,0.000111,2]
[380336964,1755695438014,-256.9635532,0.000111,2]
[380336971,1755695439986,-728.59933714,0.000111,2]
[380336972,1755695439998,-436.49205332,0.000111,2]
[380336973,1755695440009,-500.0,0.00011155,2]
[380336974,1755695440018,-500.0,0.0001121,2]
[380336975,1755695440029,-500.0,0.00011265,2]
[380336976,1755695440039,-500.0,0.0001132,2]
[380336977,1755695440048,-409.75794668,0.00011375,2]
[380336978,1755695440102,-90.24205332,0.00011375,2]
[380336979,1755695440112,-360.61870288,0.00011419,2]
[380337050,1755695443453,-268.028,0.00010697,2]
[380337052,1755695443464,-175.11689048,0.00011419,2]
[380337054,1755695443480,-586.39684974,0.00011419,2]
[380337056,1755695443490,-218.45236629,0.0001143,2]
[380337061,1755695443516,-281.54763371,0.0001143,2]
[380337064,1755695443531,-500.0,0.00011485,2]
[380337067,1755695443540,-500.0,0.0001154,2]
[380337070,1755695443549,-500.0,0.00011595,2]
[380337072,1755695443559,-250.0,0.00011877,2]
[380337074,1755695443568,-300.0,0.00011877,2]
[380337076,1755695443578,-1122.1324431,0.00011895,2]
[380337078,1755695443587,-1515.0,0.00011977,2]
[380337080,1755695443596,-420.0,0.00011978,2]
[380337082,1755695443605,-1680.0,0.00011989,2]
[380337084,1755695443614,-843.97594471,0.00012003,2]
[380337085,1755695443623,-458.46930693,0.00012003,2]
[380337086,1755695443632,-212.04014818,0.00012003,2]
[380337087,1755695443642,-160.0,0.00012003,2]
[380337088,1755695443651,-300.57620432,0.00012086,2]
[380337089,1755695443660,-500.0,0.00012086,2]
[380337090,1755695443669,-459.68070199,0.00012086,2]
[380337091,1755695443679,-13727.11,0.00012087,2]
[380337092,1755695443688,-255.0,0.00012093,2]
[380337093,1755695443697,-497.03,0.00012134,2]
[380337094,1755695443707,-1000.0,0.00012163,2]
[380337095,1755695443716,-696.7165303,0.00012371,2]
[380337096,1755695443733,-425.4159128,0.00012371,2]
[380337097,1755695443742,-515.66622423,0.00012435,2]
[380337104,1755695445836,-256.49198506,0.00012435,2]
[380337105,1755695445845,-2000.0,0.00012556,2]
[380337106,1755695445855,-250.0,0.00012565,2]
[380337107,1755695445864,-2751.0,0.00012653,2]
[380337108,1755695445874,-675.75,0.00012653,2]
[380337109,1755695445884,-302.17,0.0001275,2]
[380337110,1755695445893,-32431.3,0.00012822,2]
[380337111,1755695445903,-1122.1324431,0.00012847,2]
[380337112,1755695445912,-179.3,0.00012873,2]
[380337113,1755695445922,-165.54,0.00013113,2]
[380337114,1755695445935,-587.0,0.00013164,2]
[380337115,1755695445945,-2351.0,0.00013187,2]
[380337116,1755695445955,-165.38,0.00013219,2]
[380337117,1755695445964,-433.0,0.00013242,2]
[380337118,1755695445974,-166.0,0.00013288,3]
[380337119,1755695445984,-150.94,0.00013425,2]
[380337120,1755695445994,-717.0,0.00013596,2]
[380337121,1755695446004,-21500.0,0.00013596,2]
[380337122,1755695446013,-4152.0,0.00013596,2]
[380337123,1755695446023,-6091.0,0.00013596,2]
[380337124,1755695446033,-9286.6334409,0.00013656,2]
[380337125,1755695446042,-1000.0,0.00013683,2]
[380337126,1755695446051,-900.0,0.00013699,2]
[380337127,1755695446061,-900.0,0.00013699,2]
[380337128,1755695446071,-900.0,0.00013699,2]
[380337129,1755695446084,-900.0,0.00013699,2]
[380337130,1755695446095,-900.0,0.00013699,2]
[380337131,1755695446110,-900.0,0.00013699,2]
[380337132,1755695446120,-900.0,0.00013699,2]
[380337133,1755695446129,-900.0,0.00013699,2]
[380337134,1755695446139,-900.0,0.00013699,2]
[380337135,1755695446149,-900.0,0.00013699,2]
[380337136,1755695446159,-900.0,0.00013699,2]
[380337137,1755695446168,-900.0,0.00013699,2]
[380337138,1755695446178,-900.0,0.00013699,2]
[380337139,1755695446188,-900.0,0.00013699,2]
[380337141,1755695446197,-900.0,0.00013699,2]
[380337142,1755695446207,-900.0,0.00013699,2]
[380337143,1755695446216,-1000.0,0.00013699,2]
[380337144,1755695446226,-226.18,0.00013699,2]
[380337145,1755695446237,-200.0,0.00013699,2]
[380337146,1755695446247,-587.58,0.00013699,2]
[380337147,1755695446256,-176.523,0.00013747,2]
[380337148,1755695446266,-296.438,0.00013747,2]
[380337149,1755695446276,-245.888,0.00013747,2]
[380337150,1755695446286,-186.346,0.00013756,2]
[380337151,1755695446296,-204.989,0.00013756,2]
[380337152,1755695446305,-207.04,0.00013756,2]
[380337153,1755695446314,-250.0,0.00013756,2]
[380337154,1755695446324,-159.946,0.00013756,2]
[380337155,1755695446333,-154.0,0.00013756,2]
[380337156,1755695446342,-210.024,0.00013756,2]
[380337157,1755695446352,-3371.0,0.00013756,2]
[380337159,1755695446362,-2029.0,0.00013756,2]
[380337160,1755695446371,-904.0,0.00013756,2]
[380337161,1755695446381,-1255.0,0.00013756,2]
[380337162,1755695446390,-1297.0,0.00013756,2]
[380337163,1755695446399,-599.0,0.00013756,2]
[380337164,1755695446408,-1331.752,0.00013756,2]
[380337165,1755695446417,-675.75,0.00014234,2]
[380337166,1755695446427,-250.0,0.00014266,2]
[380337167,1755695446440,-9286.63344084,0.00014344,2]
[380337168,1755695446449,-587.58,0.00014384,2]
[380337169,1755695446459,-823.0,0.00014467,2]
[380337170,1755695446468,-620.0,0.00014501,2]
[380337171,1755695446477,-536.0,0.00014506,2]
[380337172,1755695446486,-3000.0,0.0001452,2]
[380337173,1755695446495,-2300.0,0.0001452,2]
[380337174,1755695446504,-1300.0,0.0001452,2]
[380337175,1755695446513,-1219.2681,0.00014799,2]
[380337176,1755695446522,-500.0,0.00014815,2]
[380337177,1755695446532,-1000.0,0.00014815,2]
[380337178,1755695446541,-151.0,0.00014899,2]
[380337179,1755695446550,-151.0,0.00014899,2]
[380337180,1755695446559,-151.0,0.00014899,2]
[380337181,1755695446568,-151.0,0.00014899,2]
[380337182,1755695446577,-277.35679052,0.00014899,2]
[380337183,1755695446586,-665.34742778,0.000149,2]
[380337184,1755695446595,-170.55,0.0001492,2]
[380337185,1755695446605,-250.0,0.00015,2]
[380337186,1755695446614,-9286.63344084,0.00015032,2]
[380337187,1755695446623,-587.58,0.00015068,2]
[380337188,1755695446633,-300.0,0.00015068,2]
[380337189,1755695446642,-1000.0,0.00015204,2]
[380337190,1755695446651,-161.53,0.000154,4]
[380337191,1755695446661,-165.38,0.000154,2]
[380337192,1755695446670,-151.0,0.00015509,2]
[380337193,1755695446679,-151.0,0.00015512,2]
[380337194,1755695446689,-151.0,0.0001552,2]
[380337195,1755695446698,-151.0,0.00015522,2]
[380337196,1755695446707,-151.0,0.00015524,2]
[380337197,1755695446716,-9286.63344084,0.00015721,2]
[380337198,1755695446726,-587.58,0.00015753,2]
[380337199,1755695446735,-675.75,0.00015816,2]
[380337200,1755695446744,-500.0,0.00015816,2]
[380337201,1755695446753,-157.05963202,0.00015836,7]
[380337202,1755695446762,-3000.0,0.0001589,2]
[380337203,1755695446771,-2300.0,0.0001589,2]
[380337204,1755695446780,-1300.0,0.0001589,2]
[380337205,1755695446789,-2485.55,0.0001589,2]
[380337206,1755695446800,-1152.0,0.00015899,2]
[380337207,1755695446811,-2000.0,0.00016,2]
[380337208,1755695446822,-200.0,0.00016,2]
[380337209,1755695446833,-6121.05,0.00016116,2]
[380337210,1755695446842,-287.61899177,0.00016268,2]
[380337211,1755695446851,-1371.24089654,0.00016344,2]
[380337212,1755695446860,-843.91889347,0.00016396,2]
[380337213,1755695446869,-150.67195733,0.00016408,2]
[380337214,1755695446880,-500.0,0.00016408,2]
[380337215,1755695446889,-193.57732808,0.00016408,2]
[380337216,1755695446899,-467.34241984,0.00016408,2]
[380337217,1755695446908,-9286.63344084,0.00016409,2]
[380337218,1755695446918,-192.65042633,0.00016438,2]
[380337219,1755695446927,-666.0,0.00016438,3]
[380337220,1755695446937,-587.58,0.00016438,2]
[380337221,1755695446946,-300.0,0.00016438,2]
[380337222,1755695446955,-600.0,0.00016438,2]
[380337223,1755695446964,-600.0,0.00016438,2]
[380337224,1755695446974,-600.0,0.00016438,2]
[380337225,1755695446983,-600.0,0.00016438,2]
[380337226,1755695446992,-600.0,0.00016438,2]
[380337227,1755695447002,-600.0,0.00016438,2]
[380337228,1755695447011,-600.0,0.00016438,2]
[380337229,1755695447021,-600.0,0.00016438,2]
[380337230,1755695447030,-600.0,0.00016438,2]
[380337231,1755695447039,-600.0,0.00016438,2]
[380337232,1755695447047,-600.0,0.00016438,2]
[380337233,1755695447057,-201.96671726,0.000165,2]
[380337234,1755695447066,-2529.55278,0.0001653,2]
[380337235,1755695447076,-1284.46666677,0.00016544,2]
[380337236,1755695447086,-21500.0,0.00016596,2]
[380337237,1755695447098,-4152.0,0.00016596,2]
[380337238,1755695447108,-2017.204,0.00016596,2]
[380337239,1755695447119,-500.0,0.00016599,2]
[380337240,1755695447128,-2000.0,0.00016599,2]
[380337241,1755695447139,-56000.0,0.000166,2]
[380337242,1755695447149,-500.0,0.000166,2]
[380337243,1755695447159,-500.0,0.00016644,2]
[380337244,1755695447168,-150.0,0.00016644,2]
[380337245,1755695447178,-500.0,0.00016644,2]
[380337246,1755695447188,-271.95144378,0.00016644,2]
[380337247,1755695447198,-500.0,0.00016644,2]
[380337248,1755695447207,-435.0,0.00016644,2]
[380337249,1755695447217,-500.0,0.00016644,2]
[380337250,1755695447228,-500.0,0.00016644,2]
[380337251,1755695447237,-150.0,0.00016644,2]
[380337252,1755695447247,-200.0,0.00016644,2]
[380337253,1755695447257,-158.44741976,0.00016644,2]
[380337254,1755695447266,-150.0,0.00016644,2]
[380337255,1755695447276,-150.0,0.00016644,2]
[380337256,1755695447285,-200.0,0.00016644,2]
[380337257,1755695447295,-276.67112621,0.00016644,2]
[380337258,1755695447304,-150.0,0.00016644,2]
[380337259,1755695447314,-500.0,0.00016644,2]
[380337260,1755695447324,-150.0,0.00016644,2]
[380337261,1755695447334,-150.0,0.00016644,2]
[380337262,1755695447345,-500.0,0.00016644,2]
[380337263,1755695447354,-150.0,0.00016644,2]
[380337264,1755695447364,-150.53825702,0.00016644,2]
[380337265,1755695447374,-150.0,0.00016644,2]
[380337266,1755695447383,-150.0,0.00016644,2]
[380337267,1755695447392,-150.0,0.00016644,2]
[380337268,1755695447402,-150.0,0.00016644,2]
[380337269,1755695447411,-500.0,0.00016644,2]
[380337270,1755695447420,-500.0,0.00016644,2]
[380337271,1755695447430,-9840.2023,0.00016656,2]
[380337272,1755695447439,-159.05738971,0.00016698,2]
[380337273,1755695447448,-1000.0,0.00016698,2]
[380337274,1755695447457,-1000.0,0.00016698,2]
[380337275,1755695447466,-1000.0,0.00016698,2]
[380337276,1755695447475,-2196.81,0.00016698,2]
[380337277,1755695447484,-150.0,0.000167,2]
[380337278,1755695447494,-2196.81,0.00016711,2]
[380337279,1755695447504,-233.9719036,0.00016712,2]
[380337280,1755695447513,-181.32,0.00016712,2]
[380337281,1755695447522,-2196.81,0.00016723,2]
[380337282,1755695447532,-1000.0,0.00016724,2]
[380337283,1755695447543,-2196.81,0.00016735,2]
[380337284,1755695447552,-150.0,0.00016747,2]
[380337285,1755695447562,-2196.81,0.00016748,2]
[380337286,1755695447571,-150.0,0.00016756,2]
[380337287,1755695447582,-2196.81,0.0001676,2]
[380337288,1755695447592,-2196.81,0.00016773,2]
[380337289,1755695447601,-159.27380131,0.00016773,2]
[380337290,1755695447611,-2196.81,0.00016785,2]
[380337291,1755695447621,-2196.81,0.00016797,2]
[380337292,1755695447630,-2196.81,0.0001681,2]
[380337293,1755695447641,-551.0,0.00016818,2]
[380337294,1755695447650,-2196.81,0.00016822,2]
[380337295,1755695447660,-2196.81,0.00016835,2]
[380337296,1755695447671,-2196.81,0.00016847,2]
[380337297,1755695447681,-2000.0,0.0001687,2]
[380337298,1755695447691,-402.2393,0.0001687,2]
[380337299,1755695447702,-73264.43061369,0.00016871,2]
[380337300,1755695447714,-500.0,0.00016873,2]
[380337301,1755695447724,-500.0,0.00016918,2]
[380337302,1755695447735,-150.0,0.00016918,2]
[380337303,1755695447746,-500.0,0.00016918,2]
[380337304,1755695447756,-500.0,0.00016918,2]
[380337305,1755695447765,-435.0,0.00016918,2]
[380337306,1755695447774,-500.0,0.00016918,2]
[380337307,1755695448195,-556.0,0.00016918,2]
[380337308,1755695448206,-150.0,0.00016918,2]
[380337309,1755695448216,-202.36947965,0.00016918,2]
[380337310,1755695448226,-500.0,0.00016918,2]
[380337311,1755695448236,-500.0,0.00016918,2]
[380337312,1755695448246,-150.0,0.00016918,2]
[380337313,1755695448256,-150.0,0.00016918,2]
[380337314,1755695448266,-150.0,0.00016918,2]
[380337315,1755695448275,-150.0,0.00016918,2]
[380337316,1755695448285,-500.0,0.00016918,2]
[380337317,1755695448296,-500.0,0.00016918,2]
[380337318,1755695448305,-2000.0,0.00016985,2]